Cogmind - Beta 15 @@@ ROGUE MODE // 2025.07.15 @ 11:28:18 Player: Surreal Result: Destroyed by H-61 Shepherd with Heavy Assault Cannon Performance ------------- Evolutions (2) 1000 Regions Visited (7) 1400 Robots Destroyed (30) 150 Value Destroyed (1205) 1205 Prototype IDs (25) 500 Alien Tech Used (0) 0 Bonus (1097) 1097 TOTAL SCORE: 5352 Bonus ------- Follower Combat Kills 97 Entered Garrisons 200 Used RIF Installer 500 Aligned with FarCom 300 Cogmind --------- Core Integrity 0/550 Matter 295/300 Energy 60/100 System Corruption 1% Temperature Cool (27) Movement Core (100) Ox1 Location -8/Materials Parts ------- > --- POWER (2) -------- (None) > --- PROPULSION (3) --- (None) > --- UTILITY (4) ------ Targeting Computer Hacking Suite > --- WEAPON (2) ------- Gatling Laser > --- INVENTORY (5) ---- Improved Heat Sink Advanced Weight Redist. System Datajack Peak State ------------ > --- POWER ------------ Light Nuclear Core Micro Nuclear Core > --- PROPULSION ------- Hover Unit Aerolev Unit Gravmag System > --- UTILITY ---------- Improved Heat Sink Advanced Weight Redist. System Targeting Computer Reaction Control System > --- WEAPON ----------- AWS/Thermal > --- INVENTORY -------- Shock Rifle Shock Rifle EM Pulse Cannon Datajack [Rating: 43] Favorites ----------- Power Light Ion Engine Engine Light Ion Engine Power Core Light Nuclear Core Propulsion Wheel Wheel Wheel Hover Unit Hover Unit Utility Advanced Weight Redist. System Device Advanced Weight Redist. System Storage Small Storage Unit Processor Targeting Computer Hackware Hacking Suite Weapon AWS/Thermal Energy Gun AWS/Thermal Energy Cannon EM Pulse Cannon Ballistic Cannon Light Cannon Special Melee Weapon Datajack Build | -11 -10 -10 -10 -9 -8 -8 -8 ------- Run | Yrd Mat Min Exi Min Mat Gar Mat Slots Evolved 4 | . . . . . 4 . . Power 1 | . . . . . 1 . . Propulsion 1 | . . . . . 1 . . Utility 2 | . . . . . 2 . . Weapon . | . . . . . . . . Parts Attached 31 | 4 1 3 2 . 9 4 8 Power 5 | 1 . . . . 3 1 . Engine 3 | 1 . . . . 2 . . Core 2 | . . . . . 1 1 . Reactor . | . . . . . . . . Propulsion 7 | 2 . . . . 4 1 . Treads . | . . . . . . . . Leg . | . . . . . . . . Wheel 2 | 2 . . . . . . . Hover 5 | . . . . . 4 1 . Flight . | . . . . . . . . Utility 9 | . . 1 1 . 2 2 3 Device 3 | . . 1 . . . 1 1 Storage 1 | . . . 1 . . . . Processor 4 | . . . . . 2 1 1 Hackware 1 | . . . . . . . 1 Protection . | . . . . . . . . Artifact . | . . . . . . . . Weapon 10 | 1 1 2 1 . . . 5 Energy Gun 6 | 1 . 1 1 . . . 3 Energy Cannon 2 | . . . . . . . 2 Ballistic Gun . | . . . . . . . . Ballistic Cannon 1 | . 1 . . . . . . Launcher . | . . . . . . . . Special Weapon . | . . . . . . . . Impact Weapon . | . . . . . . . . Slashing Weapon . | . . . . . . . . Piercing Weapon . | . . . . . . . . Special Melee Weapon 1 | . . 1 . . . . . Unidentified Prototypes 2 | . . . . . 1 . 1 Parts Lost 13 | . . . . . 2 1 10 Power 3 | . . . . . 1 . 2 Propulsion 5 | . . . . . 1 1 3 Utility 2 | . . . . . . . 2 Weapon 3 | . . . . . . . 3 Highest Loss Streak 9 | . . . . . 2 1 9 To Critical Strikes . | . . . . . . . . Average Backups 4 | . . 2 4 5 6 5 4 Power . | . . . . . . . . Propulsion 1 | . . 1 2 2 3 . . Utility . | . . . . . . . 1 Weapon 1 | . . . 1 2 2 2 1 Tool/Special . | . . . . . . . . Unused Backups 8 | 3 . . . . . 4 1 Power 2 | 1 . . . . . 1 . Propulsion 1 | . . . . . . 1 . Utility 2 | 1 . . . . . 1 . Weapon 3 | 1 . . . . . 1 1 Tool/Special . | . . . . . . . . Average Slot Usage (%) 79 | . 66 78 79 85 64 87 83 Engine 10 | . 14 14 14 14 9 5 . Core 4 | . . . . . 3 12 16 Wheel 17 | . 28 28 28 28 1 . . Hover 9 | . . . . . 21 26 26 Device 11 | . . 7 14 14 9 17 11 Storage 3 | . . . 4 14 9 4 . Processor 4 | . . . . . 1 12 15 Energy Gun 14 | . 14 21 18 14 9 9 7 Special Melee Weapon 1 | . . 6 . . . . . Peak Build Rating 43 | 4 5 10 23 23 33 42 43 Average Rating 22 | 2 4 7 18 23 26 37 37 On Entrance 17 | . 4 5 10 23 23 33 42 Naked Turns . | . . . . . . . . Heaviest Build 26 | 5 8 8 16 16 25 26 21 Greatest Support 32 | 20 20 29 29 29 29 32 32 Greatest Overweight (x) 2 | . . . . . 2 1 1 Average Overweight (x) . | . . . . . . . . Largest Inventory Capacity 8 | 5 5 5 8 8 8 8 5 Average Capacity 5 | 5 5 5 5 8 8 6 5 Most Carried 8 | 5 2 4 5 5 8 8 5 Average Carried 4 | . . 2 4 5 6 5 4 Final Capacity 8 | 5 5 5 8 8 8 5 5 Final Carried 7 | . 2 3 5 5 7 4 3 Class Distribution -------------------- 66% | Mutant 33% | Scavenger-Mutant Dominant Class ---------------- Mutant | -10/Materials Mutant | -10/Mines Mutant | -10/Exiles Mutant | -9/Mines Mutant | -8/Materials Scavenger-Mutant | -8/Garrison Scavenger-Mutant | -8/Materials Resources | -11 -10 -10 -10 -9 -8 -8 -8 ----------- Run | Yrd Mat Min Exi Min Mat Gar Mat Matter Collected 504 | 240 . . . . 148 46 70 Remotely . | . . . . . . . . Salvage Created 1271 | . 23 . . . 273 412 563 Parts 54 | . 2 . . . 16 18 18 Haulers Intercepted 1 | . . . . . . . 1 Recyclers Shooed . | . . . . . . . . Parts Field Recycled . | . . . . . . . . Retrieved Matter . | . . . . . . . . Parts Self-Destructed . | . . . . . . . . Prevented . | . . . . . . . . Kills | -11 -10 -10 -10 -9 -8 -8 -8 ------- Run | Yrd Mat Min Exi Min Mat Gar Mat Combat Hostiles Destroyed 25 | . . . . . 7 9 9 Guns 25 | . . . . . 7 9 9 Classes Destroyed 7 | . 1 . . . 4 1 1 Worker 1 | . . . . . 1 . . Hauler 1 | . . . . . . . 1 Watcher 3 | . 1 . . . . . 2 Swarmer 3 | . . . . . 3 . . Grunt 16 | . . . . . 3 6 7 Sentry 3 | . . . . . 1 . 2 Programmer 3 | . . . . . . 3 . Best Kill Streak 6 | . 1 . . . 5 5 6 Combat Bots Only 5 | . . . . . 4 5 4 Max Kills in Single Turn 1 | . 1 . . . 1 1 1 Gunslinging . | . . . . . . . . Exploded . | . . . . . . . . Melee . | . . . . . . . . Uniques/NPCs Destroyed . | . . . . . . . . Combat | -11 -10 -10 -10 -9 -8 -8 -8 -------- Run | Yrd Mat Min Exi Min Mat Gar Mat Hostile Shots Fired 136 | . . . . . 24 26 86 Missed 60 | . . . . . 11 14 35 Hits 76 | . . . . . 13 12 51 Projectile 76 | . . . . . 13 12 51 Critical Strikes 4 | . . . . . 1 . 3 Damage Taken 1559 | . . 6 . . 159 281 1113 Core 561 | . . . . . 28 59 474 Absorbed by Shields . | . . . . . . . . Regen/Repaired (Parts) 25 | . . . . . . . 25 Core Remaining (%) 100 | 100 . . . 100 . . . Volleys Fired 17 | . 2 . 4 . . . 11 Largest 2 | . 2 . 2 . . . 2 Hottest 113 | . 70 . 90 . . . 113 Shots Fired 146 | . 4 . 8 . 28 41 65 Gun 138 | . 2 . 8 . 28 41 59 Cannon 8 | . 2 . . . . . 6 Launcher . | . . . . . . . . Special . | . . . . . . . . Kinetic 2 | . 2 . . . . . . Thermal 125 | . . . . . 28 41 56 Explosive . | . . . . . . . . Electromagnetic 19 | . 2 . 8 . . . 9 Robot Hit Streak 37 | . 1 . . . 7 16 37 Robot Miss Streak 3 | . 3 . . . 3 1 2 Penetration Max . | . . . . . . . . Secondary Targets . | . . . . . . . . Autonomous 121 | . . . . . 28 41 52 Shots Hit Robots 121 | . 1 2 . . 22 38 58 Core Hits 40 | . 1 . . . 10 9 20 Critical Kills . | . . . . . . . . Critical Parts Destroyed . | . . . . . . . . Critical Strikes . | . . . . . . . . Melee Attacks 4 | . . 4 . . . . . Impact . | . . . . . . . . Slashing . | . . . . . . . . Piercing . | . . . . . . . . Sneak Attacks 2 | . . 2 . . . . . Combat Hostiles . | . . . . . . . . Follow-up Attacks . | . . . . . . . . Damage Inflicted 3450 | . 19 . . . 636 1192 1603 Guns 3283 | . . . . . 636 1192 1455 Cannons 126 | . 19 . . . . . 107 Explosions 41 | . . . . . . . 41 Melee . | . . . . . . . . Ramming . | . . . . . . . . Kinetic 19 | . 19 . . . . . . Thermal 3227 | . . . . . 636 1192 1399 Explosive . | . . . . . . . . Electromagnetic 204 | . . . . . . . 204 Impact . | . . . . . . . . Slashing . | . . . . . . . . Piercing . | . . . . . . . . Highest Corruption 1 | . . . . . . 1 1 Average Corruption 1 | . . . . . . 1 1 Corruption Purged . | . . . . . . . . Corruption Blocked . | . . . . . . . . Effects 7 | . . . . . . 3 4 Message Errors 2 | . . . . . . 1 1 Matter Fused 1 | . . . . . . 1 . Heat Flow Errors 1 | . . . . . . . 1 Energy Discharges 1 | . . . . . . . 1 Data Loss (minor) 1 | . . . . . . 1 . Data Loss (major) 1 | . . . . . . . 1 Overload Shots . | . . . . . . . . Overflow Damage 6 | . . . . . . . 6 Projectiles 6 | . . . . . . . 6 Explosions . | . . . . . . . . Melee . | . . . . . . . . Knockbacks . | . . . . . . . . Impact . | . . . . . . . . Kinetic . | . . . . . . . . Secondary . | . . . . . . . . Self-Inflicted Damage 113 | . . . . . . . 113 Shots 1 | . . . . . . . 1 Rammed . | . . . . . . . . Targets Rammed . | . . . . . . . . Kicked . | . . . . . . . . Crushed . | . . . . . . . . Highest Temperature 244 | . 9 . 120 . 7 . 244 Average Temperature 90 | . 6 . 63 . 7 . 104 Received Heat Transfer 414 | . . . . . 54 45 315 Siege Activations . | . . . . . . . . Martial Activations . | . . . . . . . . Shielding Activations . | . . . . . . . . Robots Disrupted . | . . . . . . . . Combat Hostiles . | . . . . . . . . Robots Corrupted . | . . . . . . . . Combat Hostiles . | . . . . . . . . Parts Fried 3 | . . . . . . . 3 Impact Corruptions . | . . . . . . . . Robots Melted . | . . . . . . . . Combat Hostiles . | . . . . . . . . Parts Melted 5 | . . . . . 1 2 2 Heat Transferred 4068 | . . . . . 814 1313 1941 Parts Sabotaged . | . . . . . . . . Parts Stolen . | . . . . . . . . Parts Stripped . | . . . . . . . . Power Chain Reactions . | . . . . . . . . Alert | -11 -10 -10 -10 -9 -8 -8 -8 ------- Run | Yrd Mat Min Exi Min Mat Gar Mat Maximum Alert Level 1 | . . . . . . 1 1 Low Security (%) 82 | 100 100 100 . 100 100 52 57 Level 1 17 | . . . . . . 47 42 Level 2 . | . . . . . . . . Level 3 . | . . . . . . . . Level 4 . | . . . . . . . . Level 5 . | . . . . . . . . High Security . | . . . . . . . . Max Security . | . . . . . . . . Peak Influence 336 | . 7 . . . 145 258 336 Initial 125 | . . . . . . 94 125 Average 79 | . 1 . . . 36 210 173 Influence Increases 1053 | . 7 . . . 371 214 461 Destroy 0b10 Robot/C 600 | . . . . . 240 180 180 Destroy 0b10 Robot/NC 30 | . 5 . . . 10 . 15 Destroy Leader 128 | . 2 . . . 60 10 56 Allied During Kill 47 | . . . . . 37 10 . Successful Hack 68 | . . . . . 18 14 36 Disable Machine 45 | . . . . . . . 45 Destroy Structure 30 | . . . . . 6 . 24 Partial Spotted 15 | . . . . . . . 15 Lose Combat Pursuer 90 | . . . . . . . 90 Influence Decreases 757 | . 7 . . . 226 101 423 Entered New Map 184 | . . . . . . 51 133 Time Decay 257 | . 7 . . . 60 . 190 Lost Part 130 | . . . . . 20 10 100 Lost Ally 60 | . . . . . 20 40 . Purge Threat 126 | . . . . . 126 . . Squads Dispatched 6 | . 1 . . . 3 . 2 Investigation 2 | . . . . . 1 . 1 Extermination . | . . . . . . . . Reinforcement 2 | . 1 . . . . . 1 Assault . | . . . . . . . . Garrison 2 | . . . . . 2 . . Intercept . | . . . . . . . . Searches Triggered . | . . . . . . . . Construction Impeded . | . . . . . . . . Haulers Reinforced . | . . . . . . . . Active Scanning Responses . | . . . . . . . . Cargo Convoy Interrupts . | . . . . . . . . Stealth | -11 -10 -10 -10 -9 -8 -8 -8 --------- Run | Yrd Mat Min Exi Min Mat Gar Mat Distress Signals 2 | . . . . . . . 2 Communications Jammed . | . . . . . . . . Distress Signals . | . . . . . . . . Times Spotted 43 | . 3 . . . 9 9 22 Peak Tracking Total 7 | . 2 . . . 4 4 7 Tactical Retreats 5 | . . . . . . . 5 Traps | -11 -10 -10 -10 -9 -8 -8 -8 ------- Run | Yrd Mat Min Exi Min Mat Gar Mat Traps Triggered 2 | . . . . . . 2 . Indirectly . | . . . . . . . . Trap Hack Attempts . | . . . . . . . . Triggered . | . . . . . . . . Disarmed . | . . . . . . . . Reprogrammed . | . . . . . . . . Reused . | . . . . . . . . Traps Extracted . | . . . . . . . . Installed . | . . . . . . . . Triggered . | . . . . . . . . Machines | -11 -10 -10 -10 -9 -8 -8 -8 ---------- Run | Yrd Mat Min Exi Min Mat Gar Mat Machines Disabled 4 | . . . 1 . . . 3 Max in Single Turn 1 | . . . 1 . . . 1 Machines Repaired . | . . . . . . . . Machines Dismantled . | . . . . . . . . Machines Sabotaged . | . . . . . . . . Overloaded Fab Kills . | . . . . . . . . Hacking | -11 -10 -10 -10 -9 -8 -8 -8 --------- Run | Yrd Mat Min Exi Min Mat Gar Mat Machines Accessed 16 | . . 1 5 . 5 1 4 Terminals 6 | . . . . . 3 1 2 Fabricators . | . . . . . . . . Repair Stations 1 | . . . . . . . 1 Recycling Units 1 | . . . . . 1 . . Scanalyzers 1 | . . . . . . . 1 Garrison Access 1 | . . . . . 1 . . Total Hacks 79 | . . 1 50 . 17 1 10 Successful 70 | . . 1 50 . 9 1 9 Failed 9 | . . . . . 8 . 1 Catastrophic 1 | . . . . . 1 . . Database Lockouts . | . . . . . . . . Manual 11 | . . . 2 . 7 . 2 Terminals 18 | . . . . . 12 1 5 Fabricators . | . . . . . . . . Repair Stations 3 | . . . . . . . 3 Recycling Units 3 | . . . . . 3 . . Scanalyzers 2 | . . . . . . . 2 Garrison Access 2 | . . . . . 2 . . Terminal Hacks 61 | . . 1 50 . 5 1 4 Record 51 | . . . 49 . 1 . 1 Open Door 1 | . . 1 . . . . . Level Access Points 1 | . . . . . . . 1 Emergency Access Points 2 | . . . . . 1 1 . Unreport Threat 1 | . . . . . 1 . . Locate Traps 2 | . . . . . 1 . 1 Patrol Status 1 | . . . . . . . 1 Zone Layout 1 | . . . . . 1 . . Proto ID Catalog 1 | . . . 1 . . . . Fabricator Hacks . | . . . . . . . . Repair Station Hacks 3 | . . . . . . . 3 Scan Component 2 | . . . . . . . 2 Repair 1 | . . . . . . . 1 Recycling Unit Hacks 1 | . . . . . 1 . . Report Inventory 1 | . . . . . 1 . . Scanalyzer 2 | . . . . . . . 2 Insert Component 1 | . . . . . . . 1 Analyze 1 | . . . . . . . 1 Garrison Access Hacks 1 | . . . . . 1 . . Unlock Access 1 | . . . . . 1 . . Unauthorized Hacks 1 | . . . . . 1 . . Terminals 1 | . . . . . 1 . . Botnet 1 | . . . . . 1 . . Fabricators . | . . . . . . . . Repair Stations . | . . . . . . . . Recycling Units . | . . . . . . . . Scanalyzers . | . . . . . . . . Garrison Access . | . . . . . . . . Data Cores Recovered 1 | . . . . . 1 . . Used . | . . . . . . . . Hacking Detections 9 | . . . . . 5 1 3 Full Trace Events 2 | . . . . . 1 . 1 Feedback Events . | . . . . . . . . Feedback Blocked . | . . . . . . . . Robot Schematics Acquired . | . . . . . . . . Robots Built . | . . . . . . . . Authchips . | . . . . . . . . Time . | . . . . . . . . Total Robot Build Rating . | . . . . . . . . Part Schematics Acquired 1 | . . . . . . . 1 Parts Built . | . . . . . . . . Authchips . | . . . . . . . . Time . | . . . . . . . . Total Part Build Rating . | . . . . . . . . Parts Repaired 1 | . . . . . . . 1 Time 38 | . . . . . . . 38 Parts Recycled . | . . . . . . . . Recycled Matter . | . . . . . . . . Retrieved Matter . | . . . . . . . . Retrieved Components . | . . . . . . . . Parts Scanalyzed 1 | . . . . . . . 1 Part Schematics Acquired 1 | . . . . . . . 1 Parts Damaged . | . . . . . . . . Bothacking | -11 -10 -10 -10 -9 -8 -8 -8 ------------ Run | Yrd Mat Min Exi Min Mat Gar Mat Used RIF Installer 1 | . . . . . . 1 . Robots Hacked 1 | . . 1 . . . . . Non-combat . | . . . . . . . . Combat 1 | . . 1 . . . . . Robot Hacks Applied 1 | . . 1 . . . . . parse_system 1 | . . 1 . . . . . Relay Couplers Released . | . . . . . . . . Fabnet Peak Effective % . | . . . . . . . . Robots Rewired . | . . . . . . . . Allies Hacked . | . . . . . . . . Hacks Repelled . | . . . . . . . . Allies | -11 -10 -10 -10 -9 -8 -8 -8 -------- Run | Yrd Mat Min Exi Min Mat Gar Mat Total Allies 3 | . . 3 . . . . . Largest Group 3 | . . 3 3 3 3 2 . Highest-Rated Group 40 | . . 40 40 40 40 31 . Highest-Rated Ally 16 | . . 16 16 16 16 16 . Total Orders . | . . . . . . . . Ally Attacks 38 | . . . . . 26 12 . Total Damage 443 | . . . . . 275 168 . Kills 6 | . . . . . 6 . . Allies Corrupted . | . . . . . . . . Allies Melted . | . . . . . . . . Intel | -11 -10 -10 -10 -9 -8 -8 -8 ------- Run | Yrd Mat Min Exi Min Mat Gar Mat Active Infowar (turns) 265 | . . . . . . . 265 Machine Analysis 265 | . . . . . . . 265 Robot Analysis Total . | . . . . . . . . Derelict Logs Recovered 3 | . . 2 . 1 . . . Drone Launches . | . . . . . . . . Drone Recoveries . | . . . . . . . . Exploration | -11 -10 -10 -10 -9 -8 -8 -8 ------------- Run | Yrd Mat Min Exi Min Mat Gar Mat Turns Passed 2838 | 55 47 734 661 256 237 455 393 Spaces Moved 3207 | 59 46 617 751 248 272 718 496 Core 17 | 14 . . . . . . 3 Treads . | . . . . . . . . Legs . | . . . . . . . . Wheels 1715 | 45 46 617 751 248 8 . . Hover 1475 | . . . . . 264 718 493 Flight . | . . . . . . . . Fastest Speed 48 | 50 80 80 80 80 48 48 48 Average Speed 66 | 72 80 80 80 80 54 48 51 Slowest Speed 180 | 80 80 80 80 80 180 111 116 Overloaded Moves . | . . . . . . . . Propulsion Burnouts . | . . . . . . . . Robots Hopped . | . . . . . . . . Potential Cave-ins . | . . . . . . . . Cave-ins Triggered . | . . . . . . . . Exploration Rate (%) 43 | 3 14 64 94 57 17 61 38 Regions Visited 7 Branch Regions 3 Pre-discovered Areas 1 | . . . 1 . . . . Known Exits Taken 1 | . . . . . 1 . . Unknown Exits Taken 5 | 1 1 1 1 1 . . . Scrap Searched . | . . . . . . . . Spaces Dug . | . . . . . . . . Terrain Destroyed 30 | . . . . . 5 . 25 Melee . | . . . . . . . . Projectile 11 | . . . . . 5 . 6 AOE 19 | . . . . . . . 19 Terrain Rammed . | . . . . . . . . Walls Destroyed . | . . . . . . . . Machines Disabled . | . . . . . . . . Actions | -11 -10 -10 -10 -9 -8 -8 -8 --------- Run | Yrd Mat Min Exi Min Mat Gar Mat Total 3886 | 72 51 855 802 305 358 824 619 Wait 560 | . . 227 44 58 65 79 87 Move 3199 | 58 45 616 750 247 271 716 496 Hop . | . . . . . . . . Pick Up 36 | 7 3 3 . . 10 6 7 Fast Attach 5 | . . . 2 . . . 3 Attach 22 | 4 1 2 . . 6 3 6 Detach 3 | . . 1 2 . . . . Swap 7 | . . 1 . . 3 1 2 Drop 20 | 3 . 1 . . 3 6 7 Fire 17 | . 2 . 4 . . . 11 Melee 4 | . . 4 . . . . . Ram . | . . . . . . . . Kick . | . . . . . . . . Crush . | . . . . . . . . Escape Stasis 13 | . . . . . . 13 . Rewire . | . . . . . . . . Trap . | . . . . . . . . Miscellaneous . | . . . . . . . . Route ------- -11/Scrapyard -10/Materials -10/Mines (discovered 3 exits: [*Mat] / *Exi / [*Sub]) -10/Exiles (discovered 2 exits: [*Min x2]) -9/Mines -8/Materials -8/Garrison (discovered 3 exits: *Mat x3) -8/Materials (discovered 3 exits: Fac x3) History --------- Turn | Location | Event 21 | -11/Scrapyard | Discovered new exit (range 15) 56 | -11/Scrapyard | Entered Materials 57 | -10/Materials | Discovered new exit (range 13) 103 | -10/Materials | Entered Mines 107 | -10/Mines | Assisted by bots powering up and referring to "LRC-V3" 112 | -10/Mines | Met a Derelict bent on vengeance 130 | -10/Mines | Learned Materials security intel 178 | -10/Mines | Learned 2 Materials zone layouts 289 | -10/Mines | Deemed a non-threat by the Exiles lab entrance 289 | -10/Mines | Discovered new exit (range 5) 300 | -10/Mines | Build established: Mutant 347 | -10/Mines | Met a Derelict who couldn't figure out how to use a Trap Extractor 449 | -10/Mines | Discovered new exit (range 14) 708 | -10/Mines | Discovered new exit (range 8) 837 | -10/Mines | Entered Exiles 837 | -10/Exiles | Accompanied by 3 allies 901 | -10/Exiles | Discovered new exit (range 14) 926 | -10/Exiles | Met 8R-AWN 946 | -10/Exiles | Met EX-HEX 976 | -10/Exiles | Met EX-BIN 989 | -10/Exiles | Aligned with FarCom system 989 | -10/Exiles | Given EX-Vault access code 1026 | -10/Exiles | Opened EX-Vault 1034 | -10/Exiles | Found AWS/Thermal 1052 | -10/Exiles | Warned to stay clear of 0b10 Research branches 1075 | -10/Exiles | Met EX-DEC 1081 | -10/Exiles | Learned location of Zion (-7) 1117 | -10/Exiles | Discovered new exit (range 10) 1177 | -10/Exiles | Visited The Gauntlet 1498 | -10/Exiles | Left Exiles lab with AWS/Thermal 1498 | -10/Exiles | Entered Mines 1498 | -9/Mines | Accompanied by 3 allies 1507 | -9/Mines | Learned Materials security intel 1605 | -9/Mines | Discovered new exit (range 3) 1754 | -9/Mines | Entered Materials 1754 | -8/Materials | Accompanied by 3 allies 1754 | -8/Materials | Evolved 4 slots: Power x1, Propulsion x1, Utility x2 1866 | -8/Materials | Garrison activated, responded to threat 1954 | -8/Materials | Identified exit to Garrison 1991 | -8/Materials | Entered Garrison 1991 | -8/Garrison | Accompanied by 2 allies 2057 | -8/Garrison | Triggered checkpoint 2098 | -8/Garrison | Discovered new exit (range 13) 2167 | -8/Garrison | Triggered checkpoint 2188 | -8/Garrison | Build established: Scavenger-Mutant 2280 | -8/Garrison | Discovered new exit (range 8) 2309 | -8/Garrison | Installed Relay Interface Framework 2389 | -8/Garrison | Triggered checkpoint 2405 | -8/Garrison | Discovered new exit (range 13) 2446 | -8/Garrison | Entered Materials 2505 | -8/Materials | Repaired Lgt. Nuclear Core 2631 | -8/Materials | Identified exit to Factory 2767 | -8/Materials | AWS/Thermal suddenly broke down 2803 | -8/Materials | Core integrity fell below 50% 2830 | -8/Materials | Core integrity fell below 20% 2839 | -8/Materials | Destroyed by H-61 Shepherd with Heavy Assault Cannon Last Messages --------------- 02807_ K-01 Serf collects debris. 02807_ U-05 Engineer builds a Wall. 02809_ Acquired 25 matter. 02811_ K-01 Serf collects debris. 02813_ The unstable cave ceiling collapses. 02822_ Hover Unit destroyed. 02823_ Critical hit (Burn: +37). 02823_ Gravmag System destroyed. 02824_ Acquired Gatling Laser. 02825_ Broken Aerolev Unit destroyed. 02829_ Lgt. Nuclear Core destroyed. 02832_ Gatling Laser destroyed. 02833_ Acquired Gatling Laser. 02834_ >> Machine Analyzer network decryption results: 02834_ Terminal x1 02836_ Y-45 Defender destroyed. 02837_ Penetrated by Slug. 02839_ Machine Analyzer destroyed. 02839_ Critical hit (Blast). Map ----- +----------------------------------------------------+ | # """ ## """ #?#!% # #? | | %* # ## #?# + #? | | =[ # """ ## "" #?#%#### #? | | " # """ ## """ #?# #????? #? | | " """" #^""" ## S" #?#%#???????#####? | | T !! """" # ## ! #?# #????????????? | | " !! """" ###+########+###### #????????????? | | " ! % % #????????????? | | #######????????????? | | Y Y b #??????????????????? | | %##### # #T######+#####??????????????"" | | #?# [ ### !#??????????????"" | | [ #?#[ ! #?# #??????????????"" | | !! ### #?# #???????????????? | | ! # ##?# #???????????????? | | / [[ #?# #???????????????? | | / ^# [ ##?# #???????????????? | | * ###+#### #??# #???????????????? | | %*# ## """T""" ##??# #???????????????? | | ]]# ! ############???########+##???????????????? | | ]%# *%=#?????????????????????# #????????????????? | | ]]# = #???????????????????### ###??????????????? | | !# ##??????????????####; ####T#?????????? | | # ##??????????????#[ % %[ g ?????? | | # ##?????????????##%[ %=% H ???? | | %# #??????????????#;@[ ! ????? | | "# #??????????????##[[ #"##### ????? | | # #???????????????#]]%## ##??????????????? | | # #???????????????#]] ## #???????????????? | | # #???????????????###### #???????????????? | | #######????????????????????+ #???????????????? | | #??????????????????????????# #???????????????? | | #??????????????????????????# #???????????????? | | ???????????????????????????# #???????????????? | | ???????????????????????????? #???????????????? | | ?????????????????????????????? #???????????????? | | ?????????????????????????????? #???????????????? | | ?????????????????????????????? ????????????????? | | ?????????????????????????????????????????????????? | | ?????????????????????????????????????????????????? | | ?????????????????????????????????????????????????? | | ??????????????????????????????s??????????????????? | | ?????????????????????????????????????????????????? | | ?????????????????????????????????????????????????? | | ?????????????????????????????????T???????????????? | | ?????????????????????????????????????????????????? | | ?????????????????????????????????????????????????? | | ?????????????????????????????????????????????????? | | ?????????????????????????????????????????????????? | | ?????????????????????????????????????????????????? | +----------------------------------------------------+ Best States ------------- Heat Dissipation 45 Energy Generation 24 Energy Capacity 325 Matter Stores 300 Matter Capacity 300 Sight Range 16 Terrain Scan Density 10 Additional Mass Support 9 Evasion (%) 63 Targeting Accuracy 5 Target Analysis 5 Offensive Hacking 10 Item Schematics ----------------- EM Pulse Cannon | -8/Materials | Scanalyzed Robot Schematics ------------------ None Fabricated ------------ Nothing Repaired ---------- Lgt. Nuclear Core | 50% | -8/Materials Alien Tech Used ----------------- None Achievements -------------- Troublemaker Challenges ------------ None Game ------ Seed PointyHybridBox Manual? 0 Play Time 00:57:29 Cumulative 3.6 hours Start 2025.07.15 @ 10:06:48 End 2025.07.15 @ 11:28:18 Sessions 1 Manual Loads 0 Difficulty Rogue Special Mode None Game No. 4 Rogue 4 Adventurer 0 Explorer 0 Win Type - Total 0 Types 0/0/0/0/0/0/0/0/0/0 Lore% 15 Gallery% 6 Achievement% 15 Wizard Run 0 Options --------- Layout 1 ASCII 0 Keyboard 0 Movement Numpad Keybinds 0 Fullscreen 1 Font 24/Terminus Map View 50x35 Zoom Use 0% Tactical HUD 1 Map Filters NONE Filters NONE Steam 1 RUN: 0f7ec968-3d8a-495d-bbbe-aae2ea2880a5